bitfinex-derivatives/quotes_ETHF0:USTF0_20240923
["timestamp","ask_amount","ask_price","bid_price","bid_amount"]
[1727102944161,0.98150956,2653.9,2653.7,0.5789069]
[1727102944356,0.37678,2653.9,2653.7,0.5789069]
[1727102944561,0.98150956,2654.0,2653.8,0.37679]
[1727102944862,0.98150956,2654.0,2653.7,0.5789069]
[1727102945363,0.98150956,2654.1,2654.0,0.37677]
[1727102945560,0.98150956,2654.2,2653.7,3.7867069]
[1727102946067,3.09110956,2654.3,2653.7,4.7287069]
[1727102946367,0.98150956,2654.5,2654.3,0.37672]
[1727102946567,0.98150956,2654.6,2654.4,0.3767]
[1727102946753,3.52407956,2654.7,2654.3,0.37672]
[1727102947165,3.14740956,2654.7,2654.4,0.37671]
[1727102947466,2.1659,2654.7,2654.1,4.4215]
[1727102947657,2.54257,2654.7,2654.3,0.37672]
[1727102947859,2.54257,2654.7,2654.4,0.37671]
[1727102947860,2.1659,2654.7,2654.4,0.37671]
[1727102948260,2.1659,2654.7,2654.4,0.3767]
[1727102948965,6.91460956,2654.7,2654.1,4.4215]
[1727102949159,3.52407956,2654.7,2654.4,0.37671]
[1727102949359,0.37669,2654.6,2654.1,4.4215]
[1727102949561,0.37669,2654.6,2654.1,4.79824]
[1727102949562,0.98150956,2654.6,2654.1,4.79824]
[1727102949768,0.98150956,2654.6,2654.2,0.37673]
[1727102949964,1.35819956,2654.6,2654.2,0.37673]
[1727102950160,0.3767,2654.5,2654.1,4.4215]
[1727102950466,0.37673,2654.3,2654.1,2.2137]
[1727102950766,0.37672,2654.3,2654.1,2.2137]
[1727102950963,0.37672,2654.4,2654.1,2.2137]
[1727102951169,0.37672,2654.4,2654.1,2.59045]
[1727102951369,0.37672,2654.4,2654.2,0.37674]
[1727102951556,0.37672,2654.4,2654.1,2.59045]
[1727102952059,0.37672,2654.3,2654.1,2.59045]
[1727102952262,0.94178,2654.4,2653.8,0.37679]
[1727102952569,0.98150956,2654.3,2653.7,3.2078]
[1727102953263,0.37677,2654.1,2653.8,0.37679]
[1727102953767,0.37677,2654.1,2653.7,3.2078]
[1727102953768,1.92339956,2654.1,2653.7,3.2078]
[1727102953957,0.98150956,2654.1,2653.7,3.2078]
[1727102954153,0.37675,2654.1,2653.9,0.37677]
[1727102954762,5.15690956,2654.2,2654.0,0.37677]
[1727102954763,5.53364956,2654.2,2654.0,0.37677]
[1727102955066,4.55214,2654.2,2654.0,0.37676]
[1727102955264,0.98150956,2654.4,2654.2,0.37673]
[1727102955464,0.37673,2654.3,2654.1,0.37674]
[1727102955772,1.92322956,2654.6,2654.2,0.37673]
[1727102955773,0.37672,2654.4,2654.2,0.37673]
[1727102956159,0.37672,2654.4,2654.0,3.2078]
[1727102956160,0.3767,2654.5,2654.3,0.37672]
[1727102956566,0.37672,2654.4,2654.2,0.37674]
[1727102958068,0.37672,2654.4,2654.3,0.37672]
[1727102958474,0.3767,2654.5,2654.3,0.37672]
[1727102958672,4.18930956,2654.6,2654.0,3.2078]
[1727102958673,0.37671,2654.4,2654.2,0.37673]
[1727102958963,0.37671,2654.4,2654.2,2.58773]
[1727102959165,3.2078,2654.6,2654.5,0.37669]
[1727102959365,5.63577956,2654.7,2654.2,2.211]
[1727102959366,2.1117,2654.7,2654.2,2.211]
[1727102959560,0.37667,2654.7,2654.5,0.37669]
[1727102959765,0.37666,2654.8,2654.6,0.37667]
[1727102959965,0.37669,2654.6,2654.4,0.37671]
[1727102960165,0.98150956,2654.9,2654.3,3.2078]
[1727102960366,1.35813956,2655.0,2654.8,0.37665]
[1727102960766,0.98150956,2655.1,2655.0,0.37662]
[1727102960975,0.98150956,2655.2,2655.1,0.37661]
[1727102961266,0.37661,2655.1,2654.7,2.2315]
[1727102961474,0.98150956,2655.3,2655.2,0.3766]
[1727102961661,4.18930956,2655.4,2655.3,0.37658]
[1727102962066,0.98150956,2655.6,2655.2,3.2078]
[1727102962267,0.98150956,2655.7,2655.2,3.2078]
[1727102962578,0.98150956,2655.6,2654.9,3.2078]
[1727102962775,1.92285956,2655.6,2655.1,0.37661]
[1727102963066,0.37657,2655.4,2655.1,0.37661]
[1727102963663,0.37659,2655.3,2655.0,0.37662]
[1727102963863,0.37659,2655.3,2654.9,5.2601]
[1727102963864,0.37661,2655.1,2654.9,2.0523]
[1727102964066,1.92293956,2655.4,2654.8,2.211]
[1727102964273,0.94155,2655.1,2654.6,3.2078]
[1727102964471,0.94155,2655.1,2654.6,3.58448]
[1727102964472,0.37666,2654.8,2654.6,3.58448]
[1727102964667,0.37665,2654.9,2654.7,0.37666]
[1727102964870,0.37663,2655.0,2654.8,0.37665]
[1727102965176,3.2078,2655.2,2654.6,4.14949]
[1727102965177,0.98150956,2655.2,2654.6,4.14949]
[1727102965376,0.98150956,2655.3,2654.9,0.37663]
[1727102965676,0.98150956,2655.3,2655.0,0.37662]
[1727102965677,0.3766,2655.2,2655.0,0.37662]
[1727102966063,0.98150956,2655.3,2654.6,3.2078]
[1727102966372,0.98150956,2655.2,2655.0,0.37662]
[1727102966568,1.35810956,2655.2,2655.0,0.37662]
[1727102966877,0.3766,2655.2,2655.0,3.58441]
[1727102967071,0.3766,2655.2,2654.7,3.2078]
[1727102967072,4.74790956,2655.2,2654.7,3.2078]
[1727102967272,0.37663,2655.0,2654.9,0.37664]
[1727102967469,0.37663,2655.0,2654.8,0.37664]
[1727102967665,0.98150956,2655.2,2655.1,0.37661]
[1727102967872,1.35810956,2655.2,2655.1,0.37661]
[1727102968068,0.3766,2655.2,2655.1,0.37661]
[1727102968370,1.35810956,2655.2,2655.0,0.37661]
[1727102968763,0.98150956,2655.2,2655.1,0.37661]
[1727102968969,1.35809956,2655.3,2655.1,0.37661]
[1727102969172,0.98150956,2655.2,2655.1,0.37661]
[1727102969765,0.98150956,2655.2,2654.7,3.2078]
[1727102969977,0.37663,2655.0,2654.8,0.37664]
[1727102970777,1.35811956,2655.1,2654.9,0.37663]
[1727102971175,0.98150956,2655.0,2654.9,0.37663]
[1727102971567,0.94158,2655.0,2654.7,3.2078]
[1727102971775,1.66095579,2655.1,2654.7,3.2078]
[1727102971776,0.37665,2654.8,2654.7,3.2078]
[1727102971970,1.35817093,2654.9,2654.7,3.2078]
[1727102972274,0.98152093,2654.8,2654.7,3.58446]
[1727102972677,0.37665,2654.8,2654.7,3.2078]
[1727102972879,1.35817093,2654.8,2654.7,3.2078]
[1727102973382,1.97801611,2654.8,2654.4,3.2078]
[1727102973576,0.98214842,2654.7,2654.4,5.2856]
[1727102973884,0.98214842,2654.7,2654.6,0.37668]
[1727102975284,1.4732291,2654.9,2654.6,9.7672]
[1727102975488,1.4732291,2655.4,2654.8,3.2078]
[1727102975673,1.66162811,2655.4,2655.1,0.3766]
[1727102975877,1.4732291,2655.4,2654.8,3.2078]
[1727102976072,1.4732291,2655.4,2654.8,4.14943]
[1727102976280,5.6682291,2655.5,2655.3,0.37658]
[1727102976980,5.6682291,2655.5,2655.2,3.58439]
[1727102977379,1.4732291,2655.5,2655.3,0.37658]
[1727102977586,1.4732291,2655.5,2655.2,3.58439]
[1727102977786,1.4732291,2655.5,2655.2,3.2078]
[1727102977990,1.4732291,2655.5,2655.3,0.37657]
[1727102978185,0.18837826,2655.6,2655.2,3.2078]
[1727102978186,1.4732291,2655.6,2655.2,3.2078]
[1727102978381,1.66160685,2655.6,2655.3,0.37658]
[1727102978687,1.66160685,2655.6,2655.2,3.2078]
[1727102978688,1.4732291,2655.6,2655.2,5.76509]
[1727102978987,1.66160973,2655.6,2655.2,5.76509]
[1727102979188,1.4732291,2655.5,2655.4,0.37656]
[1727102979383,4.14211611,2655.7,2655.4,0.37656]
[1727102979384,1.4732291,2655.6,2655.4,0.37656]
[1727102979586,1.66161276,2655.6,2655.4,0.37656]
[1727102979797,1.66161276,2655.6,2655.5,0.37655]
[1727102979980,1.4732291,2655.7,2655.5,3.2078]
[1727102980180,1.97801611,2655.8,2655.6,0.37654]
[1727102980376,1.66181602,2655.7,2655.6,0.37654]
[1727102980687,1.66181602,2655.7,2655.5,3.2078]
[1727102980688,1.47344375,2655.7,2655.5,3.58435]
[1727102981388,2.207,2656.1,2655.6,6.3056]
[1727102981389,1.47344375,2656.1,2655.6,6.3056]
[1727102981686,1.66178113,2656.2,2656.0,3.58428]
[1727102981882,1.47344375,2656.3,2656.2,0.37645]
[1727102982191,1.47292744,2656.3,2656.2,0.37645]
[1727102982385,1.47292744,2656.3,2656.1,2.2628]
[1727102982789,1.47292744,2656.3,2656.0,3.58428]
[1727102982993,1.47292744,2656.2,2656.0,3.58428]
[1727102983785,1.47292744,2656.2,2656.1,0.37647]
[1727102984084,0.18833049,2656.3,2656.1,0.37646]
[1727102984085,1.47292744,2656.3,2656.1,0.37646]
[1727102984895,2.03769413,2656.3,2656.0,3.58427]
[1727102985093,1.47292744,2656.3,2656.0,3.58427]
[1727102985293,1.47292744,2656.3,2656.1,0.37647]
[1727102985785,1.47292744,2656.3,2656.1,0.37646]
[1727102985986,1.47292744,2656.4,2656.1,0.37646]
[1727102986188,1.66125595,2656.4,2656.0,3.58428]
[1727102986381,1.66125893,2656.3,2656.1,0.37647]
[1727102986578,1.84936744,2656.4,2656.0,3.58427]
[1727102986785,1.47292744,2656.3,2656.0,3.2078]
[1727102986986,1.84937744,2656.3,2656.0,3.2078]
[1727102987290,0.37645,2656.3,2656.0,3.2078]
[1727102987486,0.37645,2656.3,2656.0,3.58428]
[1727102987790,1.47292744,2656.4,2656.0,3.2078]
[1727102987791,0.37647,2656.1,2656.0,3.2078]
[1727102987993,1.47292744,2656.3,2656.0,3.2078]
[1727102988189,2.55922,2656.5,2656.0,3.2078]
[1727102988190,3.65572744,2656.5,2656.2,0.37645]
[1727102988390,4.03214744,2656.5,2656.3,0.37644]
[1727102988591,0.37647,2656.1,2656.0,3.2078]
[1727102988791,1.47292744,2656.3,2656.0,3.2078]
[1727102988987,0.37645,2656.2,2656.0,3.58427]
[1727102989184,0.37653,2655.7,2655.4,3.2078]
[1727102989383,0.37655,2655.5,2655.4,0.37656]
[1727102989582,5.41728,2656.1,2655.4,0.37656]
[1727102989583,2.59975,2655.6,2655.4,0.37656]
[1727102990084,0.37657,2655.4,2655.2,2.0772]
[1727102990281,3.69612744,2655.6,2655.2,2.0772]
[1727102990487,2.2232,2655.6,2655.4,0.37656]
[1727102990686,0.37657,2655.4,2655.2,2.0772]
[1727102990890,0.94139,2655.5,2655.0,3.2078]
[1727102991190,0.37661,2655.1,2655.0,3.58442]
[1727102991392,0.37661,2655.1,2655.0,3.2078]
[1727102991693,1.84947744,2655.5,2655.4,0.37657]
[1727102991994,2.2232,2655.6,2655.5,0.37655]
[1727102993395,16.55292744,2655.8,2655.7,0.37652]
[1727102993696,16.55292744,2655.8,2655.3,4.14925]
[1727102993697,0.37651,2655.8,2655.3,4.14925]
[1727102993894,0.37652,2655.8,2655.6,0.37653]
[1727102994587,5.94902744,2655.9,2655.7,0.37651]
[1727102994795,0.37654,2655.6,2655.4,0.37656]
[1727102995790,0.37654,2655.6,2655.3,3.2078]
[1727102995791,0.37653,2655.7,2655.5,0.37655]
[1727102997191,5.94902744,2655.9,2655.3,4.14924]
[1727102997394,6.32552744,2655.9,2655.7,0.37652]
[1727102997695,4.4761,2655.9,2655.8,0.37651]
[1727102998088,1.7454,2656.0,2655.9,0.3765]
[1727102998492,1.7454,2656.0,2655.6,3.2078]
[1727102998493,2.12189,2656.0,2655.6,3.2078]
[1727102998700,0.3765,2655.9,2655.6,3.2078]
[1727102998886,0.3765,2655.9,2655.1,3.2078]
[1727102998887,0.37659,2655.3,2655.1,3.2078]
[1727102999194,1.47292744,2655.4,2654.8,2.19105]
[1727102999395,3.15512744,2655.2,2654.4,3.2078]
[1727102999598,0.37666,2654.8,2654.5,0.37669]
[1727102999991,0.37666,2654.8,2654.6,0.37668]
[1727103000197,0.37666,2654.8,2654.5,0.37669]
[1727103000498,0.94167,2654.7,2653.8,2.54]
[1727103000703,3.2078,2654.3,2653.7,3.2078]
[1727103000998,1.84968744,2654.1,2653.8,0.37679]
[1727103001197,1.47292744,2654.1,2654.0,0.37676]
[1727103001500,3.3449,2654.2,2654.1,0.37675]
[1727103001689,1.84963744,2654.4,2654.0,0.37676]
[1727103001893,1.47292744,2654.4,2653.8,2.54]
[1727103002097,1.47292744,2654.3,2654.1,0.37675]
[1727103002292,1.47292744,2654.3,2653.8,2.54]
[1727103002293,1.84965744,2654.3,2653.9,0.37677]
[1727103002697,1.47292744,2654.3,2653.8,2.54]
[1727103002903,1.47292744,2654.3,2654.1,0.37675]
[1727103003114,1.47292744,2654.3,2654.0,0.37677]
[1727103003396,1.47292744,2654.3,2653.6,4.9884]
[1727103003593,0.37678,2653.9,2653.6,4.9884]
[1727103003791,5.18581611,2654.3,2653.6,4.9884]
[1727103003792,1.47292744,2654.0,2653.6,3.2078]
[1727103004093,3.2078,2653.7,2653.0,1.7908]
[1727103004289,0.37689,2653.2,2652.7,0.37694]
[1727103004600,0.37689,2653.2,2652.5,1.7013]
[1727103004601,1.85110439,2653.3,2652.8,0.37693]
[1727103004900,1.7946,2653.2,2652.5,1.7013]
[1727103005105,0.37693,2652.9,2652.4,3.58478]
[1727103005397,0.37693,2652.9,2652.4,3.58479]
[1727103005599,0.37693,2652.9,2652.4,3.2078]
[1727103005900,3.5261,2653.1,2652.7,0.37694]
[1727103006103,1.7431,2653.1,2652.7,0.37694]
[1727103006300,1.7946,2653.2,2652.7,3.2078]
[1727103006597,1.7946,2653.2,2653.0,0.37691]
[1727103006802,5.00033439,2653.6,2652.7,2.54]
[1727103006991,5.00033439,2653.6,2652.9,0.37692]
[1727103006992,0.37687,2653.3,2652.9,0.37692]
[1727103007190,3.2078,2653.4,2652.5,1.8223]
[1727103007494,3.2078,2653.1,2652.3,2.1816]
[1727103007797,0.37692,2653.0,2652.5,0.37698]
[1727103007995,0.37692,2652.9,2652.5,0.37698]
[1727103008199,0.37692,2652.9,2652.3,1.8046]
[1727103008605,0.37692,2652.9,2652.4,0.37699]
[1727103008901,0.37694,2652.8,2652.4,0.37699]
[1727103009201,0.37692,2653.0,2652.5,0.37698]
[1727103009503,0.37692,2653.0,2652.4,3.2078]
[1727103009504,15.8874,2653.5,2652.4,5.7478]
[1727103009803,0.37689,2653.2,2652.8,0.37692]
[1727103010003,15.8874,2653.5,2652.7,0.37695]
[1727103010004,0.3769,2653.1,2652.7,0.37695]
[1727103010300,0.37689,2653.2,2652.8,0.37693]
[1727103010509,0.3769,2653.1,2652.8,0.37693]
[1727103010703,15.8874,2653.5,2652.4,5.7478]
[1727103010892,0.37694,2652.8,2652.4,3.2078]
[1727103011094,0.37695,2652.7,2652.4,3.58479]
[1727103011402,0.37699,2652.4,2652.1,2.07043]
[1727103011603,0.37699,2652.4,2652.1,2.07044]
[1727103011604,0.377,2652.4,2652.1,2.07044]
[1727103012109,4.8574,2652.6,2652.1,1.6934]
[1727103012405,5.13728,2653.0,2652.7,0.37695]
[1727103012406,7.77972,2653.0,2652.7,0.37695]
[1727103012602,3.58472,2653.0,2652.7,0.37695]
[1727103012902,3.2078,2653.0,2652.2,1.6591]
[1727103013109,0.37695,2652.7,2652.4,0.37698]
[1727103013297,0.37695,2652.7,2652.2,1.6591]
[1727103013298,3.2078,2653.0,2652.3,0.377]
[1727103013491,3.2078,2653.0,2652.2,1.6591]
[1727103013492,4.1501,2653.0,2652.2,1.6591]
[1727103013696,0.94231,2652.9,2652.3,0.377]
[1727103013999,0.37697,2652.6,2652.3,0.377]
[1727103014208,3.2078,2652.8,2652.2,1.6591]
[1727103014407,0.37696,2652.7,2652.2,1.6591]
[1727103014603,4.8574,2653.1,2652.2,1.6591]
[1727103014903,0.01,2652.3,2652.2,2.03612]
[1727103015303,0.01,2652.3,2652.2,5.80652]
[1727103015512,0.01,2652.3,2652.2,12.74908]
[1727103015698,1.6496,2653.1,2652.8,0.37693]
[1727103016008,1.6496,2653.1,2653.0,0.37691]
[1727103016228,3.445,2653.3,2653.0,0.37691]
[1727103016504,3.445,2653.3,2652.7,0.37694]
[1727103016505,0.3769,2653.1,2652.7,0.37694]
[1727103016906,0.37692,2652.9,2652.5,0.37698]
[1727103017111,1.7128,2653.0,2652.3,3.2078]
[1727103017296,2.08972,2653.0,2652.6,0.37696]
[1727103017693,2.11797,2653.3,2652.9,0.37692]
[1727103018095,1.7411,2653.3,2652.5,2.54]
[1727103018597,0.37688,2653.2,2652.8,0.37693]
[1727103018793,2.11797,2653.3,2652.9,0.37691]
[1727103019197,0.37688,2653.2,2652.8,0.37693]
[1727103019612,1.7411,2653.3,2652.5,5.7478]
[1727103019798,2.11797,2653.3,2652.9,0.37691]
[1727103020002,1.7411,2653.3,2652.8,3.2078]
[1727103020306,1.7411,2653.3,2653.1,0.37688]
[1727103020506,3.2078,2653.4,2653.1,0.37688]
[1727103020507,2.08964,2653.5,2653.1,0.37688]
[1727103020702,1.7128,2653.5,2653.2,0.37688]
[1727103020908,1.7128,2653.5,2653.3,0.37686]
[1727103021206,1.7128,2653.5,2652.9,6.0926]
[1727103021511,1.7128,2653.5,2653.2,0.37687]
[1727103021710,1.7128,2653.5,2652.9,6.0926]
[1727103022006,1.7055,2653.7,2653.6,0.37682]
[1727103022212,5.33727,2654.0,2653.6,0.37682]
[1727103022507,4.9605,2654.0,2653.6,0.37681]
[1727103023209,5.33728,2654.0,2653.6,0.37682]
[1727103023414,4.9605,2654.0,2653.7,0.37681]
[1727103023712,1.7527,2654.0,2653.9,0.37678]
[1727103024009,10.885,2654.7,2653.9,3.768]
[1727103024309,0.37672,2654.3,2653.9,0.37678]
[1727103024699,6.64,2654.5,2654.0,0.37677]
[1727103025101,0.37673,2654.3,2653.8,0.37679]
[1727103025301,0.37673,2654.3,2653.6,3.448]
[1727103025302,0.94178,2654.4,2653.6,3.82482]
[1727103025502,0.37677,2654.0,2653.6,3.82482]
[1727103025702,6.64,2654.5,2653.4,0.37685]
[1727103025703,0.3768,2653.8,2653.4,0.37685]
[1727103025901,3.2078,2654.0,2653.4,0.37685]
[1727103026116,2.11261,2653.7,2653.4,0.37685]
[1727103026502,1.7358,2653.7,2653.1,3.2078]
[1727103026913,1.7358,2653.7,2653.4,0.37684]
[1727103027910,4.9436,2653.7,2653.3,0.37686]
[1727103028303,0.37683,2653.6,2653.3,0.37686]
[1727103028503,4.9436,2653.7,2653.1,3.2078]
[1727103028504,0.37685,2653.4,2653.1,3.58469]
[1727103028708,0.37688,2653.2,2653.1,3.2078]
[1727103029411,0.37683,2653.6,2653.1,3.2078]
[1727103029618,0.37684,2653.5,2653.3,0.37685]
[1727103030113,5.32041,2653.7,2653.5,0.37683]
[1727103030511,0.37685,2653.5,2653.3,0.37686]
[1727103030710,4.9436,2653.7,2653.1,3.2078]
[1727103030913,4.1499,2653.5,2653.1,0.37688]
[1727103031111,4.1499,2653.5,2653.0,0.3769]
[1727103031112,0.37689,2653.2,2653.0,0.3769]
[1727103031313,0.37689,2653.2,2652.6,7.48289]
[1727103031908,4.1499,2653.5,2652.6,6.5405]
[1727103032104,0.94217,2653.3,2652.9,0.37692]
[1727103032322,0.37691,2653.0,2652.8,0.37693]
[1727103033229,1.6958,2653.1,2652.6,6.5405]
[1727103033405,0.37691,2653.0,2652.9,0.37692]
[1727103033610,2.0727,2653.1,2652.9,0.37692]
[1727103033811,2.0727,2653.1,2653.0,0.37691]
[1727103033812,1.6958,2653.1,2653.0,0.37691]
[1727103034621,1.7064,2653.2,2653.1,0.37689]
[1727103035415,1.7064,2653.2,2653.0,0.3769]
[1727103035922,0.3769,2653.1,2652.8,0.37693]
[1727103036221,1.6013,2653.0,2652.6,6.5405]
[1727103036520,1.6013,2653.0,2652.6,3.2078]
[1727103036521,2.5436,2653.0,2652.6,3.2078]
[1727103036715,2.58923,2652.9,2652.6,3.2078]
[1727103037018,2.58923,2652.9,2652.3,3.2078]
[1727103037205,0.37695,2652.8,2652.6,0.37696]
[1727103037411,2.02383,2652.9,2652.7,0.37694]
[1727103037621,0.37694,2652.8,2652.6,0.37696]
[1727103037819,1.6469,2652.9,2652.4,0.94249]
[1727103038119,1.97822,2653.0,2652.8,0.37693]
[1727103038120,1.6013,2653.0,2652.8,0.37693]
[1727103038323,1.97821,2653.0,2652.8,0.37693]
[1727103038519,1.6013,2653.0,2652.9,0.37692]
[1727103038817,1.6013,2653.0,2652.5,0.94245]
[1727103039124,0.37694,2652.8,2652.6,0.37696]
[1727103039319,2.54359,2653.0,2652.3,3.2078]
[1727103039320,0.94231,2652.9,2652.3,3.2078]
[1727103039722,0.37697,2652.6,2652.4,0.37698]
[1727103039925,0.94231,2652.9,2652.2,1.7236]
[1727103040222,0.94231,2652.9,2652.3,0.377]
[1727103040223,0.9424,2652.7,2652.3,0.377]
[1727103040416,3.2078,2652.5,2651.8,1.6155]
[1727103040618,4.15039,2652.2,2651.6,0.3771]
[1727103040818,0.37708,2651.9,2651.6,0.3771]
[1727103041016,0.94263,2652.0,2651.4,0.37713]
[1727103041221,1.6744,2651.8,2651.4,0.37713]
[1727103041424,2.05149,2651.8,2651.5,0.37711]
[1727103041721,0.37713,2651.5,2651.2,3.2078]
[1727103041920,0.37713,2651.5,2651.3,0.37714]
[1727103042122,0.37713,2651.5,2651.2,3.58495]
[1727103042313,0.37713,2651.5,2651.3,0.37715]
[1727103042515,0.37713,2651.5,2651.2,3.58496]
[1727103042727,0.3771,2651.7,2651.5,0.37712]
[1727103042930,0.37711,2651.6,2651.2,3.2078]
[1727103043132,1.6744,2651.8,2650.9,2.59499]
[1727103043133,3.2078,2651.5,2651.0,0.37719]
[1727103043431,1.6321,2651.4,2650.7,3.3375]
[1727103043723,0.37717,2651.2,2651.0,0.37718]
[1727103044027,0.37718,2651.1,2650.9,0.3772]
[1727103044332,1.7097,2651.1,2650.9,0.3772]
[1727103044517,1.7097,2651.1,2651.0,0.37719]
[1727103045427,1.6321,2651.4,2651.1,0.37717]
[1727103045428,2.00924,2651.4,2651.1,0.37717]
[1727103045627,1.6321,2651.4,2650.7,3.3375]
[1727103045929,0.37715,2651.3,2651.0,0.37719]
[1727103046125,1.6321,2651.4,2650.7,3.3375]
[1727103046327,0.3772,2651.0,2650.7,3.71472]
[1727103046524,0.3772,2651.0,2650.8,3.2078]
[1727103046730,0.37718,2651.1,2650.8,3.2078]
[1727103047026,0.94288,2651.3,2651.0,0.37719]
[1727103047027,0.37715,2651.3,2651.0,0.37719]
[1727103047729,0.37717,2651.2,2650.9,0.3772]
[1727103048120,0.37718,2651.1,2650.8,3.58501]
[1727103048321,0.37718,2651.1,2650.9,0.3772]
[1727103048522,0.37717,2651.2,2650.9,0.3772]
[1727103048719,0.37721,2650.9,2650.8,3.2078]
[1727103048924,3.10633439,2651.4,2650.9,0.3772]
[1727103048925,0.37719,2651.1,2650.9,0.3772]
[1727103049133,1.47423439,2651.3,2650.9,0.3772]
[1727103049323,0.37719,2651.1,2650.9,0.3772]
[1727103049927,3.10633439,2651.4,2650.8,3.2078]
[1727103050123,0.37717,2651.2,2651.0,0.37719]
[1727103050322,3.10633439,2651.4,2650.9,0.3772]
[1727103050323,0.37719,2651.1,2650.9,0.3772]
[1727103050523,0.3772,2651.0,2650.8,0.37722]
[1727103050723,2.0182,2651.0,2650.8,0.37722]
[1727103051135,1.641,2651.0,2650.8,0.37722]
[1727103051837,1.641,2651.0,2650.9,0.37721]
[1727103052023,1.641,2651.0,2650.4,4.2913]
[1727103052230,1.641,2651.0,2650.3,4.15101]
[1727103052231,3.58501,2650.9,2650.3,3.2078]
[1727103052429,3.58501,2650.9,2650.2,2.69366]
[1727103052430,5.29121,2650.9,2650.2,1.7504]
[1727103052632,0.37725,2650.6,2650.4,0.37726]
[1727103052832,0.37725,2650.6,2650.3,3.2078]
[1727103052833,0.37725,2650.6,2650.5,0.37726]
[1727103053024,0.37724,2650.7,2650.6,0.37725]
[1727103053236,0.37724,2650.7,2650.5,0.37726]
[1727103053637,1.7062,2650.9,2650.2,1.7504]
[1727103053837,2.08342,2650.9,2650.7,0.37723]
[1727103054137,0.37722,2650.8,2650.6,0.37724]
[1727103054334,2.08342,2650.9,2650.7,0.37723]
[1727103054733,2.08342,2650.9,2650.4,0.9432]
[1727103054927,0.37725,2650.7,2650.2,4.9582]
[1727103055139,0.37726,2650.6,2650.2,4.9582]
[1727103055534,0.37726,2650.6,2650.5,0.37726]
[1727103055737,2.64922,2650.9,2650.5,0.37726]
[1727103055738,0.37725,2650.7,2650.5,0.37726]
[1727103055937,2.64922,2650.9,2650.5,0.37726]
[1727103056132,0.37725,2650.7,2650.5,0.37726]
[1727103056332,2.64922,2650.9,2650.5,0.37726]
[1727103056536,0.37727,2650.5,2650.2,4.9582]
[1727103056731,0.37727,2650.5,2650.4,0.37728]
[1727103056937,0.37724,2650.7,2650.5,0.37726]
[1727103057729,0.37723,2650.8,2650.6,0.37724]
[1727103057928,1.7062,2650.9,2650.3,0.94321]
[1727103058229,1.7062,2650.9,2650.6,0.37724]
[1727103058429,2.08342,2650.9,2650.7,0.37723]
[1727103058936,1.7062,2650.9,2650.8,0.37722]
[1727103059142,1.7062,2650.9,2650.3,0.94321]
[1727103059143,1.641,2651.0,2650.9,0.37721]
[1727103059534,1.641,2651.0,2650.5,0.94316]
[1727103059535,3.77846,2651.3,2651.1,0.37717]
[1727103059733,3.77845,2651.3,2651.1,0.37717]
[1727103059932,3.77846,2651.3,2650.8,1.7623]
[1727103060137,3.4013,2651.3,2650.8,1.7623]
[1727103060342,0.37718,2651.1,2651.0,0.37718]
[1727103060543,3.4013,2651.3,2650.8,2.70535]
[1727103060747,3.77845,2651.3,2650.8,2.70535]
[1727103061044,0.37709,2651.8,2651.6,0.3771]
[1727103061349,1.7408,2651.9,2651.3,1.7614]
[1727103061533,1.7408,2651.9,2650.8,1.7623]
[1727103061534,0.94276,2651.7,2650.8,1.7623]
[1727103061839,0.37718,2651.1,2650.9,0.3772]
[1727103062039,0.94285,2651.4,2650.8,3.90091]
[1727103062040,0.37719,2651.0,2650.8,3.90091]
[1727103062240,0.37719,2651.0,2650.7,9.7638]
[1727103062241,3.2078,2651.2,2650.7,3.2078]
[1727103062439,3.2078,2651.2,2651.0,0.37718]
[1727103062948,3.58497,2651.2,2651.0,0.37718]
[1727103063138,3.2078,2651.2,2651.1,0.37718]
[1727103063337,3.58497,2651.2,2651.0,0.37719]
[1727103064348,3.2078,2651.2,2651.1,0.37718]
[1727103064736,1.693,2651.6,2651.5,0.37712]
[1727103065038,1.693,2651.6,2651.0,3.2078]
[1727103065039,2.10387,2651.9,2651.7,0.37709]
[1727103065441,2.10387,2651.9,2651.2,7.58491]
[1727103065442,0.37708,2651.8,2651.2,7.58491]
[1727103065646,1.7268,2651.9,2651.6,0.3771]
[1727103065647,2.10387,2651.9,2651.6,0.3771]
[1727103065852,1.7268,2651.9,2651.5,0.37711]
[1727103066042,0.37709,2651.8,2651.5,0.37711]
[1727103066248,0.37709,2651.8,2651.2,7.58491]
[1727103066249,2.10387,2651.9,2651.3,0.94288]
[1727103066442,2.10387,2651.9,2651.7,0.37709]
[1727103066946,4.8771,2652.1,2651.4,0.94283]
[1727103066947,0.37706,2652.0,2651.4,0.94283]
[1727103067145,4.8771,2652.1,2651.9,0.37706]
[1727103067449,3.3947,2652.2,2652.0,0.37704]
[1727103067833,1.7017,2652.2,2651.8,3.256]
[1727103068342,1.7017,2652.2,2652.0,0.37704]
[1727103070242,2.07873,2652.2,2651.9,0.37706]
[1727103070741,0.37704,2652.1,2651.9,0.37706]
[1727103071348,0.37704,2652.1,2651.8,3.63307]
[1727103071547,3.2078,2652.1,2651.2,4.1507]
[1727103071743,3.2078,2651.8,2651.2,3.3916]
[1727103071948,0.94274,2651.7,2651.0,0.37719]
[1727103072148,0.37716,2651.3,2651.1,0.37717]
[1727103072543,2.01774,2651.4,2651.2,0.37716]
[1727103072747,1.6854,2651.6,2650.8,0.94304]
[1727103072942,0.37716,2651.3,2651.0,3.2078]
[1727103073748,0.37716,2651.3,2651.1,0.37717]
[1727103074046,1.7269,2651.4,2651.0,3.2078]